fUST/lending_fUST_20241003
["ID","MTS","AMOUNT","RATE_DAILY","PERIOD"]
[339726010,1727902155486,-250.0,0.00011563,2]
[339726011,1727902155508,-250.0,0.00011595,2]
[339726012,1727902155530,-250.0,0.00011626,2]
[339726013,1727902155553,-250.0,0.00011658,2]
[339726014,1727902155574,-250.0,0.00011689,2]
[339726015,1727902155596,-250.0,0.00011721,2]
[339726016,1727902155618,-250.0,0.00011753,2]
[339726017,1727902155640,-250.0,0.00011784,2]
[339726018,1727902155662,-250.0,0.00011816,2]
[339726019,1727902155683,-250.0,0.00011847,2]
[339726020,1727902155704,-250.0,0.00011879,2]
[339726021,1727902155725,-250.0,0.0001191,2]
[339726022,1727902155747,-250.0,0.00011942,2]
[339726023,1727902155770,-250.0,0.00011973,2]
[339726024,1727902155791,-250.0,0.00012005,2]
[339726025,1727902155811,-250.0,0.00012036,2]
[339726026,1727902155831,-250.0,0.00012068,2]
[339726027,1727902155852,-250.0,0.00012099,2]
[339726028,1727902155874,-587.0,0.00012496,2]
[339726029,1727902155894,-587.0,0.00012505,2]
[339726030,1727902169091,-172.26889639,0.00012776,2]
[339726031,1727902194795,3000.0,0.00012171,2]
[339726060,1727902232269,-300.0,0.00012899,2]
[339726062,1727902232280,-300.0,0.00012899,2]
[339726064,1727902232291,-7423.55850331,0.000129,2]
[339726066,1727902232304,-7423.55850326,0.000129,2]
[339726068,1727902232314,-1331.3549734,0.0001292,2]
[339726070,1727902232324,-153.0,0.00012941,2]
[339726072,1727902232334,-153.0,0.00012941,2]
[339726074,1727902232346,-412.701024,0.00013014,2]
[339726076,1727902232359,-412.701024,0.00013014,2]
[339726078,1727902232370,-412.701024,0.00013014,2]
[339726079,1727902232381,-1331.3549734,0.0001342,2]
[339726080,1727902232391,-442.14058091,0.00013561,2]
[339726081,1727902232401,-19367.30258919,0.00013561,2]
[339726084,1727902232422,-694.76841677,0.00013561,2]
[339726087,1727902232441,-6747.53384655,0.00013561,2]
[339726090,1727902232775,500.0,0.00011506,2]
[339726117,1727902238338,-500.0,0.00012876,2]
[339726118,1727902238348,-1522.53203335,0.00013561,2]
[339726146,1727902240190,-6107.30997143,0.0001354,2]
[339726147,1727902240201,-18220.99247289,0.00013561,2]
[339726149,1727902240211,-25790.3208865,0.00013663,2]
[339726150,1727902240221,-11163.4701174,0.00013663,2]
[339726151,1727902240230,-51580.6417729,0.00013668,2]
[339726152,1727902240241,-22326.9402347,0.00013668,2]
[339726153,1727902240251,-77370.9626594,0.00013668,2]
[339726154,1727902240261,-33490.4103521,0.00013668,2]
[339726155,1727902240272,-350.55244638,0.00013673,2]
[339726156,1727902240283,-501.82860116,0.00013673,2]
[339726157,1727902240294,-500.0,0.00013673,2]
[339726158,1727902240305,-500.0,0.00013673,2]
[339726159,1727902240317,-500.0,0.00013673,2]
[339726160,1727902240327,-500.0,0.00013673,2]
[339726161,1727902240338,-500.0,0.00013673,2]
[339726162,1727902240350,-500.0,0.00013673,2]
[339726163,1727902240359,-500.0,0.00013673,2]
[339726164,1727902240369,-500.0,0.00013673,2]
[339726165,1727902240378,-500.0,0.00013673,2]
[339726166,1727902240387,-502.87996593,0.00013673,2]
[339726167,1727902240397,-500.0,0.00013673,2]
[339726168,1727902240407,-500.0,0.00013673,2]
[339726169,1727902240416,-500.0,0.00013673,2]
[339726170,1727902240426,-173.0,0.00013673,2]
[339726171,1727902240436,-51580.6417729,0.00013678,2]
[339726172,1727902240445,-22326.9402347,0.00013678,2]
[339726173,1727902240455,-218.492189,0.00013678,2]
[339726174,1727902240465,-25790.3208865,0.00013688,2]
[339726175,1727902240474,-22326.9402347,0.00013688,2]
[339726176,1727902240483,-167.307722,0.00013688,2]
[339726177,1727902240492,-167.307722,0.00013688,2]
[339726178,1727902240502,-151.0,0.00013688,2]
[339726179,1727902240512,-392.751038,0.00013688,2]
[339726180,1727902240521,-392.751038,0.00013688,2]
[339726181,1727902240531,-151.0,0.00013688,2]
[339726182,1727902240541,-151.0,0.00013688,2]
[339726183,1727902240551,-2117.07168,0.00013688,2]
[339726184,1727902240560,-2117.07168,0.00013688,2]
[339726185,1727902240570,-151.0,0.00013688,2]
[339726186,1727902240579,-182.262702,0.00013688,2]
[339726187,1727902240591,-151.0,0.00013688,2]
[339726188,1727902240601,-182.262702,0.00013688,2]
[339726189,1727902240613,-412.344558,0.00013688,2]
[339726190,1727902240623,-412.344558,0.00013688,2]
[339726191,1727902240633,-1804.545025,0.00013688,2]
[339726192,1727902240643,-1804.545025,0.00013688,2]
[339726193,1727902240652,-151.0,0.00013688,2]
[339726194,1727902240661,-151.0,0.00013688,2]
[339726195,1727902240671,-373.716893,0.00013688,2]
[339726196,1727902240680,-373.716893,0.00013688,2]
[339726197,1727902240689,-155.966576,0.00013688,2]
[339726198,1727902240698,-155.966576,0.00013688,2]
[339726199,1727902240707,-341.656926,0.00013688,2]
[339726200,1727902240716,-341.656926,0.00013688,2]
[339726201,1727902240726,-525.420468,0.00013688,2]
[339726202,1727902240735,-346.116806,0.00013688,2]
[339726203,1727902240745,-525.420468,0.00013688,2]
[339726204,1727902240754,-1513.302558,0.00013688,2]
[339726205,1727902240763,-346.116806,0.00013688,2]
[339726206,1727902240773,-1513.302558,0.00013688,2]
[339726207,1727902240782,-151.0,0.00013688,2]
[339726208,1727902240792,-403.842275,0.00013688,2]
[339726209,1727902240801,-486.104944,0.00013688,2]
[339726210,1727902240810,-486.104944,0.00013688,2]
[339726211,1727902240820,-1235.405225,0.00013688,2]
[339726212,1727902240830,-1235.405225,0.00013688,2]
[339726213,1727902240839,-403.842275,0.00013688,2]
[339726214,1727902240848,-486.104944,0.00013688,2]
[339726215,1727902240858,-486.104944,0.00013688,2]
[339726216,1727902240867,-1235.405225,0.00013688,2]
[339726217,1727902240877,-1235.405225,0.00013688,2]
[339726218,1727902240886,-1705.521387,0.00013688,2]
[339726219,1727902240896,-1705.521387,0.00013688,2]
[339726220,1727902240906,-1705.521387,0.00013688,2]
[339726221,1727902240915,-1705.521387,0.00013688,2]
[339726222,1727902240925,-392.554489,0.00013688,2]
[339726223,1727902240934,-392.554489,0.00013688,2]
[339726224,1727902240944,-111634.701174,0.00013688,2]
[339726225,1727902240953,-199.58842923,0.00013697,2]
[339726226,1727902240964,-9849.26872951,0.00013697,2]
[339726227,1727902240973,-68369.96109153,0.00013698,2]
[339726228,1727902240983,-36443.05373179,0.00013698,2]
[339726229,1727902240992,-158.979958,0.00013698,2]
[339726230,1727902241001,-158.979958,0.00013698,2]
[339726231,1727902241010,-158.979958,0.00013698,2]
[339726232,1727902241020,-158.979958,0.00013698,2]
[339726233,1727902241030,-158.979958,0.00013698,2]
[339726234,1727902241039,-158.979958,0.00013698,2]
[339726235,1727902241049,-158.979958,0.00013698,2]
[339726236,1727902241059,-158.979958,0.00013698,2]
[339726237,1727902241068,-158.979958,0.00013698,2]
[339726238,1727902241078,-158.979958,0.00013698,2]
[339726239,1727902241087,-158.979958,0.00013698,2]
[339726240,1727902241097,-158.979958,0.00013698,2]
[339726241,1727902241106,-158.979958,0.00013698,2]
[339726242,1727902241115,-158.979958,0.00013698,2]
[339726243,1727902241126,-158.979958,0.00013698,2]
[339726244,1727902241136,-158.979958,0.00013698,2]
[339726245,1727902241146,-158.979958,0.00013698,2]
[339726246,1727902241155,-158.979958,0.00013698,2]
[339726247,1727902241165,-158.979958,0.00013698,2]
[339726248,1727902241177,-158.979957,0.00013698,2]
[339726249,1727902241187,-367.231457,0.00013698,2]
[339726250,1727902241198,-367.231457,0.00013698,2]
[339726251,1727902241207,-367.231457,0.00013698,2]
[339726252,1727902241218,-367.231457,0.00013698,2]
[339726253,1727902241228,-367.231457,0.00013698,2]
[339726254,1727902241238,-367.231457,0.00013698,2]
[339726255,1727902241248,-367.231457,0.00013698,2]
[339726256,1727902241259,-367.231457,0.00013698,2]
[339726257,1727902241269,-367.231457,0.00013698,2]
[339726258,1727902241279,-367.231457,0.00013698,2]
[339726259,1727902241289,-367.231457,0.00013698,2]
[339726260,1727902241298,-367.231457,0.00013698,2]
[339726261,1727902241308,-367.231457,0.00013698,2]
[339726262,1727902241328,-367.231457,0.00013698,2]
[339726263,1727902241338,-367.231457,0.00013698,2]
[339726264,1727902241347,-367.231457,0.00013698,2]
[339726265,1727902241356,-367.231457,0.00013698,2]
[339726266,1727902241366,-367.231457,0.00013698,2]
[339726267,1727902241376,-367.231457,0.00013698,2]
[339726268,1727902241385,-367.231463,0.00013698,2]
[339726269,1727902241394,-500.0,0.00013698,2]
[339726270,1727902241404,-500.0,0.00013698,2]
[339726271,1727902241413,-168.26452411,0.00013698,2]
[339726272,1727902241422,-510.12003069,0.00013698,2]
[339726273,1727902241431,-500.0,0.00013698,2]
[339726274,1727902241440,-500.0,0.00013698,2]
[339726275,1727902241450,-167.307722,0.00013698,2]
[339726276,1727902241460,-167.307722,0.00013698,2]
[339726277,1727902241470,-167.307722,0.00013698,2]
[339726278,1727902241479,-167.307722,0.00013698,2]
[339726279,1727902241489,-167.307722,0.00013698,2]
[339726280,1727902241498,-167.307722,0.00013698,2]
[339726281,1727902241508,-167.307722,0.00013698,2]
[339726282,1727902241517,-167.307722,0.00013698,2]
[339726283,1727902241527,-167.307722,0.00013698,2]
[339726284,1727902241536,-167.307722,0.00013698,2]
[339726285,1727902241545,-167.307722,0.00013698,2]
[339726286,1727902241556,-167.307722,0.00013698,2]
[339726287,1727902241570,-167.307722,0.00013698,2]
[339726288,1727902241580,-167.307722,0.00013698,2]
[339726289,1727902241589,-167.307722,0.00013698,2]
[339726290,1727902241598,-167.307722,0.00013698,2]
[339726291,1727902241608,-167.307722,0.00013698,2]
[339726292,1727902241617,-167.307712,0.00013698,2]
[339726293,1727902241626,-151.0,0.00013698,2]
[339726294,1727902241636,-151.0,0.00013698,2]
[339726295,1727902241645,-151.0,0.00013698,2]
[339726296,1727902241655,-151.0,0.00013698,2]
[339726297,1727902241664,-151.0,0.00013698,2]
[339726298,1727902241674,-151.0,0.00013698,2]
[339726299,1727902241683,-151.0,0.00013698,2]
[339726300,1727902241692,-151.0,0.00013698,2]
[339726301,1727902241701,-151.0,0.00013698,2]
[339726302,1727902241710,-500.0,0.00013698,2]
[339726303,1727902241719,-151.0,0.00013698,2]
[339726304,1727902241728,-151.0,0.00013698,2]
[339726305,1727902241737,-151.0,0.00013698,2]
[339726306,1727902241747,-151.0,0.00013698,2]
[339726307,1727902241756,-151.0,0.00013698,2]
[339726308,1727902241766,-151.0,0.00013698,2]
[339726309,1727902241775,-207.433056,0.00013698,2]
[339726310,1727902241784,-256.896259,0.00013698,2]
[339726311,1727902241793,-256.896253,0.00013698,2]
[339726312,1727902241802,-216.933955,0.00013698,2]
[339726313,1727902241815,-216.933955,0.00013698,2]
[339726314,1727902241824,-216.933955,0.00013698,2]
[339726315,1727902241833,-216.933955,0.00013698,2]
[339726316,1727902241842,-216.933955,0.00013698,2]
[339726317,1727902241851,-216.933955,0.00013698,2]
[339726318,1727902241861,-216.933955,0.00013698,2]
[339726319,1727902241871,-216.933955,0.00013698,2]
[339726320,1727902241880,-216.933955,0.00013698,2]
[339726321,1727902241889,-216.933955,0.00013698,2]
[339726322,1727902241900,-600.0,0.00013698,2]
[339726323,1727902241909,-250.82333539,0.00013698,2]
[339726324,1727902241919,-500.0,0.00013698,2]
[339726325,1727902241928,-500.0,0.00013698,2]
[339726326,1727902241937,-500.0,0.00013698,2]
[339726327,1727902241946,-151.0,0.00013698,2]
[339726328,1727902241955,-1078.56,0.00013698,2]
[339726329,1727902241965,-500.0,0.00013698,2]
[339726330,1727902241974,-583.55741029,0.00013698,2]
[339726331,1727902241983,-151.0,0.00013698,2]
[339726332,1727902241992,-151.0,0.00013698,2]
[339726333,1727902242001,-151.0,0.00013698,2]
[339726334,1727902242010,-151.0,0.00013698,2]
[339726335,1727902242019,-570.16282312,0.00013698,2]
[339726336,1727902242028,-500.0,0.00013698,2]
[339726337,1727902242038,-151.0,0.00013698,2]
[339726338,1727902242047,-151.0,0.00013698,2]
[339726339,1727902242057,-151.0,0.00013698,2]
[339726340,1727902242069,-198.505805,0.00013698,2]
[339726341,1727902242078,-151.0,0.00013698,2]
[339726342,1727902242087,-151.0,0.00013698,2]
[339726343,1727902242096,-151.0,0.00013698,2]
[339726344,1727902242106,-151.0,0.00013698,2]
[339726345,1727902242115,-151.0,0.00013698,2]
[339726346,1727902242127,-151.0,0.00013698,2]
[339726347,1727902242137,-151.0,0.00013698,2]
[339726348,1727902242147,-151.0,0.00013698,2]
[339726349,1727902242157,-151.0,0.00013698,2]
[339726350,1727902242167,-151.0,0.00013698,2]
[339726351,1727902242176,-500.0,0.00013698,2]
[339726352,1727902242186,-151.0,0.00013698,2]
[339726353,1727902242195,-185.400812,0.00013698,2]
[339726354,1727902242205,-813.74,0.00013698,2]
[339726355,1727902242214,-500.0,0.00013698,2]
[339726356,1727902242225,-500.0,0.00013698,2]
[339726357,1727902242235,-567.7927315,0.00013698,2]
[339726358,1727902242245,-508.13329237,0.00013698,2]
[339726359,1727902242254,-500.0,0.00013698,2]
[339726360,1727902242264,-500.0,0.00013698,2]
[339726361,1727902242273,-658.51,0.00013698,2]
[339726362,1727902242282,-344.41199794,0.00013698,2]
[339726363,1727902242291,-500.0,0.00013698,2]
[339726364,1727902242300,-500.0,0.00013698,2]
[339726365,1727902242311,-500.0,0.00013698,2]
[339726366,1727902242320,-500.0,0.00013698,2]
[339726367,1727902242329,-507.03654802,0.00013698,2]
[339726368,1727902242338,-500.0,0.00013698,5]
[339726369,1727902242347,-500.0,0.00013698,2]
[339726370,1727902242356,-151.0,0.00013698,2]
[339726371,1727902242366,-153.023518,0.00013698,2]
[339726372,1727902242376,-500.0,0.00013698,2]
[339726373,1727902242385,-461.80611972,0.00013698,2]
[339726374,1727902242401,-500.0,0.00013698,2]
[339726375,1727902242415,-500.0,0.00013698,2]
[339726376,1727902242425,-500.0,0.00013698,2]
[339726377,1727902242434,-151.0,0.00013698,2]
[339726378,1727902242444,-225.159614,0.00013698,2]
[339726379,1727902242453,-500.0,0.00013698,2]
[339726380,1727902242464,-500.0,0.00013698,2]
[339726381,1727902242473,-500.0,0.00013698,2]
[339726382,1727902242483,-500.0,0.00013698,2]
[339726383,1727902242494,-500.0,0.00013698,2]
[339726384,1727902242503,-500.0,0.00013698,2]
[339726385,1727902242513,-737.89,0.00013698,2]
[339726386,1727902242522,-500.0,0.00013698,2]
[339726387,1727902242532,-500.0,0.00013698,2]
[339726388,1727902242541,-835.87,0.00013698,2]
[339726389,1727902242551,-500.0,0.00013698,2]
[339726390,1727902242561,-500.0,0.00013698,2]
[339726391,1727902242571,-668.27,0.00013698,2]
[339726392,1727902242580,-151.0,0.00013698,2]
[339726393,1727902242590,-151.0,0.00013698,2]
[339726394,1727902242600,-151.0,0.00013698,2]
[339726395,1727902242610,-265.543565,0.00013698,2]
[339726396,1727902242619,-265.543565,0.00013698,2]
[339726397,1727902242629,-265.543565,0.00013698,2]
[339726398,1727902242639,-265.543565,0.00013698,2]
[339726399,1727902242650,-500.0,0.00013698,2]
[339726400,1727902242660,-265.543565,0.00013698,2]
[339726401,1727902242670,-265.543565,0.00013698,2]
[339726402,1727902242680,-265.543565,0.00013698,2]
[339726411,1727902242874,-265.543565,0.00013698,2]
[339726415,1727902242884,-265.543565,0.00013698,2]
[339726419,1727902242894,-265.543565,0.00013698,2]
[339726423,1727902242903,-265.543565,0.00013698,2]
[339726427,1727902242912,-500.0,0.00013698,2]
[339726430,1727902242922,-265.543565,0.00013698,2]
[339726432,1727902242931,-265.543565,0.00013698,2]
[339726433,1727902242940,-265.543565,0.00013698,2]
[339726435,1727902242949,-1026.91,0.00013698,2]
[339726437,1727902242963,-500.0,0.00013698,2]
[339726439,1727902242973,-151.0,0.00013698,2]
[339726441,1727902242982,-151.0,0.00013698,2]
[339726443,1727902242991,-151.0,0.00013698,2]
[339726445,1727902243001,-151.0,0.00013698,2]
[339726447,1727902243011,-500.0,0.00013698,2]
[339726449,1727902243021,-278.941675,0.00013698,2]
[339726451,1727902243031,-500.0,0.00013698,2]
[339726454,1727902243041,-500.0,0.00013698,2]
[339726456,1727902243051,-500.0,0.00013698,2]
[339726458,1727902243062,-253.15478481,0.00013698,2]
[339726460,1727902243072,-500.0,0.00013698,2]
[339726462,1727902243082,-512.36,0.00013698,2]
[339726464,1727902243092,-500.0,0.00013698,2]
[339726466,1727902243101,-500.0,0.00013698,2]
[339726468,1727902243111,-500.0,0.00013698,2]
[339726470,1727902243121,-500.0,0.00013698,2]
[339726472,1727902243132,-500.0,0.00013698,2]
[339726474,1727902243142,-500.0,0.00013698,2]
[339726476,1727902243152,-500.0,0.00013698,2]
[339726478,1727902243163,-323.65330555,0.00013698,2]
[339726480,1727902243173,-500.0,0.00013698,2]
[339726483,1727902243187,-151.0,0.00013698,2]
[339726485,1727902243198,-151.0,0.00013698,2]
[339726487,1727902243208,-151.0,0.00013698,2]
[339726489,1727902243218,-151.0,0.00013698,2]
[339726491,1727902243228,-218.265945,0.00013698,2]
[339726493,1727902243237,-500.0,0.00013698,2]
[339726494,1727902243248,-500.0,0.00013698,2]
[339726496,1727902243258,-500.0,0.00013698,2]
[339726498,1727902243268,-500.0,0.00013698,2]
[339726500,1727902243278,-500.0,0.00013698,2]
[339726502,1727902243290,-500.0,0.00013698,2]
[339726504,1727902243300,-500.0,0.00013698,2]
[339726505,1727902243312,-151.0,0.00013698,2]
[339726506,1727902243324,-500.0,0.00013698,2]
[339726507,1727902243342,-500.0,0.00013698,2]
[339726508,1727902243352,-500.0,0.00013698,2]
[339726509,1727902243362,-500.0,0.00013698,2]
[339726510,1727902243372,-500.0,0.00013698,2]
[339726511,1727902243382,-500.0,0.00013698,2]
[339726512,1727902243393,-528.37,0.00013698,2]
[339726513,1727902243403,-500.0,0.00013698,2]
[339726514,1727902243413,-500.0,0.00013698,2]
[339726515,1727902243424,-500.0,0.00013698,2]
[339726516,1727902243434,-500.0,0.00013698,2]
[339726517,1727902243448,-500.0,0.00013698,2]
[339726518,1727902243458,-712.01,0.00013698,2]
[339726519,1727902243468,-500.0,0.00013698,2]
[339726520,1727902243478,-500.0,0.00013698,2]
[339726521,1727902243488,-500.0,0.00013698,2]
[339726522,1727902243498,-500.0,0.00013698,2]
[339726523,1727902243507,-500.0,0.00013698,2]
[339726524,1727902243518,-519.94,0.00013698,2]
[339726525,1727902243528,-500.0,0.00013698,2]
[339726526,1727902243538,-536.65,0.00013698,2]
[339726527,1727902243548,-151.0,0.00013698,2]
[339726528,1727902243558,-151.0,0.00013698,2]
[339726529,1727902243572,-151.0,0.00013698,2]
[339726530,1727902243582,-151.0,0.00013698,2]
[339726531,1727902243592,-500.0,0.00013698,2]
[339726532,1727902243602,-151.0,0.00013698,2]
[339726533,1727902243613,-500.0,0.00013698,2]
[339726534,1727902243623,-151.0,0.00013698,2]
[339726535,1727902243633,-151.0,0.00013698,2]
[339726536,1727902243642,-151.0,0.00013698,2]
[339726537,1727902243652,-151.0,0.00013698,2]
[339726538,1727902243661,-151.0,0.00013698,2]
[339726539,1727902243671,-151.0,0.00013698,2]
[339726540,1727902243681,-295.014258,0.00013698,2]
[339726541,1727902243690,-509.48109642,0.00013698,2]
[339726542,1727902243700,-858.22,0.00013698,2]
[339726543,1727902243710,-500.0,0.00013698,2]
[339726544,1727902243720,-500.0,0.00013698,2]
[339726545,1727902243729,-747.05,0.00013698,2]
[339726546,1727902243739,-500.0,0.00013698,2]
[339726547,1727902243748,-500.0,0.00013698,2]
[339726548,1727902243758,-500.0,0.00013698,2]
[339726549,1727902243767,-500.0,0.00013698,2]
[339726550,1727902243777,-500.0,0.00013698,2]
[339726551,1727902243786,-500.0,0.00013698,2]
[339726552,1727902243796,-500.0,0.00013698,2]
[339726553,1727902243806,-500.0,0.00013698,2]
[339726554,1727902243817,-500.0,0.00013698,2]
[339726555,1727902243827,-516.7,0.00013698,2]
[339726556,1727902243837,-500.0,0.00013698,2]
[339726557,1727902243847,-597.89916767,0.00013698,2]
[339726558,1727902243857,-500.0,0.00013698,2]
[339726559,1727902243868,-529.45,0.00013698,2]
[339726560,1727902243878,-500.0,0.00013698,2]
[339726561,1727902243888,-500.0,0.00013698,2]
[339726562,1727902243898,-500.0,0.00013698,2]
[339726563,1727902243907,-500.0,0.00013698,2]
[339726564,1727902243917,-500.0,0.00013698,2]
[339726565,1727902243927,-500.0,0.00013698,2]
[339726566,1727902243936,-500.0,0.00013698,2]
[339726567,1727902243946,-585.91,0.00013698,2]
[339726568,1727902243955,-172.41961798,0.00013698,2]
[339726569,1727902243966,-500.0,0.00013698,2]
[339726570,1727902243975,-500.0,0.00013698,2]
[339726571,1727902243985,-500.0,0.00013698,2]
[339726572,1727902243995,-500.0,0.00013698,2]
[339726573,1727902244005,-500.0,0.00013698,2]
[339726574,1727902244015,-223.235206,0.00013698,2]
[339726575,1727902244025,-223.235206,0.00013698,2]
[339726576,1727902244035,-223.235206,0.00013698,2]
[339726577,1727902244045,-223.235206,0.00013698,2]
[339726578,1727902244055,-223.235206,0.00013698,2]
[339726579,1727902244066,-500.0,0.00013698,2]
[339726580,1727902244076,-223.235206,0.00013698,2]
[339726581,1727902244085,-223.235206,0.00013698,2]
[339726582,1727902244095,-223.235206,0.00013698,2]
[339726583,1727902244105,-723.03,0.00013698,2]
[339726584,1727902244116,-769.45,0.00013698,2]
[339726585,1727902244130,-223.235206,0.00013698,2]
[339726586,1727902244140,-1072.45,0.00013698,2]
[339726587,1727902244150,-223.235206,0.00013698,2]
[339726588,1727902244160,-223.235206,0.00013698,2]
[339726589,1727902244171,-223.235206,0.00013698,2]
[339726590,1727902244181,-223.235206,0.00013698,2]
[339726591,1727902244191,-223.235206,0.00013698,2]
[339726592,1727902244202,-500.0,0.00013698,2]
[339726593,1727902244212,-223.235206,0.00013698,2]
[339726594,1727902244222,-223.235206,0.00013698,2]
[339726595,1727902244231,-223.235206,0.00013698,2]
[339726596,1727902244242,-223.235206,0.00013698,2]
[339726597,1727902244252,-500.0,0.00013698,2]
[339726598,1727902244263,-886.41,0.00013698,2]
[339726599,1727902244273,-500.0,0.00013698,2]
[339726600,1727902244282,-500.0,0.00013698,2]
[339726601,1727902244292,-500.0,0.00013698,2]
[339726602,1727902244302,-500.0,0.00013698,2]
[339726603,1727902244311,-651.91,0.00013698,2]
[339726604,1727902244322,-500.0,0.00013698,2]
[339726605,1727902244332,-608.87,0.00013698,2]
[339726606,1727902244342,-506.28763256,0.00013698,2]
[339726607,1727902244352,-500.0,0.00013698,2]
[339726608,1727902244362,-1563.58,0.00013698,2]
[339726609,1727902244384,-559.13,0.00013698,2]
[339726610,1727902244394,-500.0,0.00013698,2]
[339726611,1727902244404,-224.49839184,0.00013698,2]
[339726612,1727902244415,-735.42,0.00013698,2]
[339726613,1727902244425,-500.0,0.00013698,2]
[339726614,1727902244436,-997.140984,0.00013698,2]
[339726615,1727902244447,-997.140984,0.00013698,2]
[339726616,1727902244458,-997.140984,0.00013698,2]
[339726617,1727902244470,-997.140984,0.00013698,2]
[339726618,1727902244482,-997.140984,0.00013698,2]
[339726619,1727902244493,-997.140984,0.00013698,2]
[339726620,1727902244503,-997.140984,0.00013698,2]
[339726621,1727902244515,-500.0,0.00013698,2]
[339726622,1727902244528,-997.140984,0.00013698,2]
[339726623,1727902244538,-997.140984,0.00013698,2]
[339726624,1727902244550,-997.140984,0.00013698,2]
[339726625,1727902244562,-997.140984,0.00013698,2]
[339726626,1727902244574,-997.140984,0.00013698,2]
[339726627,1727902244585,-997.140984,0.00013698,2]
[339726628,1727902244595,-151.0,0.00013698,2]
[339726629,1727902244605,-276.215488,0.00013698,2]
[339726630,1727902244615,-997.140984,0.00013698,2]
[339726631,1727902244626,-997.140984,0.00013698,2]
[339726632,1727902244637,-997.140984,0.00013698,2]
[339726633,1727902244647,-997.140984,0.00013698,2]
[339726634,1727902244657,-500.0,0.00013698,2]
[339726635,1727902244666,-997.140984,0.00013698,2]
[339726636,1727902244676,-275.879306,0.00013698,2]
[339726637,1727902244687,-275.879306,0.00013698,2]
[339726638,1727902244697,-275.879306,0.00013698,2]
[339726639,1727902244709,-275.879306,0.00013698,2]
[339726640,1727902244719,-275.879306,0.00013698,2]
[339726641,1727902244730,-275.879306,0.00013698,2]
[339726642,1727902244742,-151.0,0.00013698,2]
[339726643,1727902244754,-275.879306,0.00013698,2]
[339726644,1727902244765,-275.879306,0.00013698,2]
[339726645,1727902244776,-668.17,0.00013698,2]
[339726646,1727902244787,-275.879306,0.00013698,2]
[339726647,1727902244797,-275.879306,0.00013698,2]
[339726648,1727902244808,-275.879306,0.00013698,2]
[339726649,1727902244820,-275.879306,0.00013698,2]
[339726650,1727902244830,-275.879306,0.00013698,2]
[339726651,1727902244840,-275.879306,0.00013698,2]
[339726652,1727902244850,-275.879306,0.00013698,2]
[339726653,1727902244860,-723.23,0.00013698,2]
[339726654,1727902244871,-275.879306,0.00013698,2]
[339726655,1727902244881,-580.77,0.00013698,2]
[339726656,1727902244891,-500.0,0.00013698,2]
[339726657,1727902244901,-275.879306,0.00013698,2]
[339726658,1727902244912,-500.0,0.00013698,2]
[339726659,1727902244922,-500.0,0.00013698,2]
[339726660,1727902244932,-275.879306,0.00013698,2]
[339726661,1727902244941,-500.0,0.00013698,2]
[339726662,1727902244951,-500.0,0.00013698,2]
[339726663,1727902244962,-500.0,0.00013698,2]
[339726664,1727902244976,-500.0,0.00013698,2]
[339726665,1727902244985,-526.18,0.00013698,2]